fUST/lending_fUST_20240824
["ID","MTS","AMOUNT","RATE_DAILY","PERIOD"]
[335768142,1724483445349,-500.0,0.00013698,2]
[335768144,1724483445358,-500.0,0.00013698,2]
[335768146,1724483445367,-732.18,0.00013698,2]
[335768147,1724483445377,-501.35155916,0.00013698,2]
[335768149,1724483445386,-500.0,0.00013698,2]
[335768151,1724483445396,-778.16,0.00013698,2]
[335768153,1724483445406,-604.64,0.00013698,2]
[335768155,1724483445417,-500.0,0.00013698,2]
[335768156,1724483445426,-1288.2,0.00013698,2]
[335768158,1724483445437,-1238.19,0.00013698,2]
[335768160,1724483445446,-694.55,0.00013698,2]
[335768162,1724483445456,-500.0,0.00013698,2]
[335768164,1724483445465,-500.0,0.00013698,2]
[335768166,1724483445475,-714.32,0.00013698,2]
[335768167,1724483445484,-500.0,0.00013698,2]
[335768168,1724483445494,-2003.38,0.00013698,2]
[335768170,1724483445503,-524.03413021,0.00013698,2]
[335768172,1724483445512,-1930.14,0.00013698,2]
[335768173,1724483445521,-587.05,0.00013698,2]
[335768175,1724483445531,-2161.33,0.00013698,2]
[335768177,1724483445540,-2145.31,0.00013698,2]
[335768179,1724483445551,-500.0,0.00013698,2]
[335768180,1724483445560,-500.0,0.00013698,2]
[335768182,1724483445570,-1974.410121,0.00013698,2]
[335768184,1724483445579,-500.0,0.00013698,2]
[335768186,1724483445591,-500.0,0.00013698,2]
[335768188,1724483445601,-760.72,0.00013698,2]
[335768189,1724483445611,-500.0,0.00013698,2]
[335768191,1724483445621,-1050.21,0.00013698,2]
[335768193,1724483445630,-1267.06,0.00013698,2]
[335768195,1724483445639,-500.0,0.00013698,2]
[335768196,1724483445649,-1974.410121,0.00013698,2]
[335768198,1724483445658,-1352.38,0.00013698,2]
[335768200,1724483445668,-500.0,0.00013698,2]
[335768201,1724483445678,-13875.09,0.00013698,2]
[335768202,1724483445702,-500.0,0.00013698,2]
[335768203,1724483445713,-500.0,0.00013698,2]
[335768204,1724483445723,-524.40759916,0.00013698,2]
[335768205,1724483445732,-500.37040333,0.00013698,2]
[335768206,1724483445742,-696.74,0.00013698,2]
[335768207,1724483445752,-662.57,0.00013698,2]
[335768208,1724483445761,-597.85,0.00013698,2]
[335768209,1724483445770,-500.0,0.00013698,2]
[335768210,1724483445780,-987.1,0.00013698,2]
[335768211,1724483445790,-1000.0,0.00013698,2]
[335768212,1724483445799,-500.0,0.00013698,2]
[335768214,1724483445809,-6982.26,0.00013698,2]
[335768215,1724483445819,-500.0,0.00013698,2]
[335768217,1724483445828,-509.48,0.00013698,2]
[335768219,1724483445846,-509.48,0.00013698,2]
[335768221,1724483445856,-509.48,0.00013698,2]
[335768223,1724483445866,-509.48,0.00013698,2]
[335768224,1724483445875,-509.48,0.00013698,2]
[335768226,1724483445887,-509.48,0.00013698,2]
[335768228,1724483445897,-725.86,0.00013698,2]
[335768229,1724483445906,-509.48,0.00013698,2]
[335768231,1724483445916,-500.0,0.00013698,2]
[335768233,1724483445928,-561.71,0.00013698,2]
[335768235,1724483445939,-509.48,0.00013698,2]
[335768237,1724483445949,-509.48,0.00013698,2]
[335768239,1724483445959,-1384.34,0.00013698,2]
[335768241,1724483445969,-509.48,0.00013698,2]
[335768242,1724483445979,-509.48,0.00013698,2]
[335768244,1724483445988,-509.48,0.00013698,2]
[335768246,1724483445999,-509.48,0.00013698,2]
[335768248,1724483446008,-509.48,0.00013698,2]
[335768250,1724483446019,-509.48,0.00013698,2]
[335768251,1724483446028,-509.48,0.00013698,2]
[335768253,1724483446037,-509.48,0.00013698,2]
[335768255,1724483446046,-253.09911784,0.00013698,2]
[335768256,1724483446056,-500.0,0.00013698,2]
[335768257,1724483446067,-509.48,0.00013698,2]
[335768258,1724483446077,-2326.12,0.00013698,2]
[335768259,1724483446088,-2326.12,0.00013698,2]
[335768260,1724483446099,-2326.12,0.00013698,2]
[335768261,1724483446111,-2326.12,0.00013698,2]
[335768262,1724483446121,-2326.12,0.00013698,2]
[335768263,1724483446131,-2326.12,0.00013698,2]
[335768264,1724483446143,-500.0,0.00013698,2]
[335768265,1724483446155,-2326.12,0.00013698,2]
[335768266,1724483446166,-2326.12,0.00013698,2]
[335768267,1724483446176,-2326.12,0.00013698,2]
[335768268,1724483446186,-500.0,0.00013698,2]
[335768269,1724483446196,-1258.65,0.00013698,2]
[335768271,1724483446206,-1303.58,0.00013698,2]
[335768273,1724483446216,-500.0,0.00013698,2]
[335768275,1724483446226,-500.0,0.00013698,2]
[335768276,1724483446237,-500.0,0.00013698,2]
[335768278,1724483446247,-500.0,0.00013698,2]
[335768279,1724483446258,-500.0,0.00013698,2]
[335768280,1724483446268,-500.0,0.00013698,2]
[335768281,1724483446278,-500.0,0.00013698,2]
[335768282,1724483446288,-500.0,0.00013698,2]
[335768283,1724483446298,-500.0,0.00013698,2]
[335768284,1724483446312,-500.0,0.00013698,2]
[335768285,1724483446322,-1282.32,0.00013698,2]
[335768286,1724483446332,-500.0,0.00013698,2]
[335768287,1724483446342,-500.0,0.00013698,2]
[335768288,1724483446352,-500.0,0.00013698,2]
[335768289,1724483446361,-500.0,0.00013698,2]
[335768290,1724483446370,-501.2626616,0.00013698,2]
[335768291,1724483446380,-299.67801397,0.00013698,2]
[335768292,1724483446389,-500.0,0.00013698,2]
[335768293,1724483446399,-500.0,0.00013698,2]
[335768294,1724483446409,-504.19437505,0.00013698,2]
[335768295,1724483446419,-603.79,0.00013698,2]
[335768296,1724483446429,-500.0,0.00013698,2]
[335768297,1724483446441,-500.0,0.00013698,2]
[335768298,1724483446451,-6426.7,0.00013698,2]
[335768299,1724483446461,-500.0,0.00013698,2]
[335768300,1724483446472,-500.0,0.00013698,2]
[335768301,1724483446481,-615.94,0.00013698,2]
[335768302,1724483446491,-9360.34,0.00013698,2]
[335768303,1724483446501,-9360.34,0.00013698,2]
[335768304,1724483446510,-9360.34,0.00013698,2]
[335768305,1724483446520,-1296.73,0.00013698,2]
[335768306,1724483446529,-500.0,0.00013698,2]
[335768307,1724483446539,-500.0,0.00013698,2]
[335768308,1724483446548,-9360.34,0.00013698,2]
[335768309,1724483446558,-9360.34,0.00013698,2]
[335768310,1724483446567,-546.66878442,0.00013698,2]
[335768311,1724483446576,-9360.34,0.00013698,2]
[335768312,1724483446586,-500.0,0.00013698,2]
[335768313,1724483446596,-9360.34,0.00013698,2]
[335768314,1724483446605,-500.0,0.00013698,2]
[335768315,1724483446614,-9360.34,0.00013698,2]
[335768316,1724483446627,-9360.34,0.00013698,2]
[335768317,1724483446637,-9360.34,0.00013698,2]
[335768318,1724483446646,-9360.34,0.00013698,2]
[335768319,1724483446656,-862.99,0.00013698,2]
[335768321,1724483446665,-9360.34,0.00013698,2]
[335768323,1724483446676,-9360.34,0.00013698,2]
[335768324,1724483446686,-9360.34,0.00013698,2]
[335768325,1724483446696,-9360.34,0.00013698,2]
[335768326,1724483446706,-9360.34,0.00013698,2]
[335768327,1724483446716,-3858.99,0.00013698,2]
[335768328,1724483446726,-2368.24,0.00013698,2]
[335768329,1724483446735,-500.0,0.00013698,2]
[335768330,1724483446745,-9360.34,0.00013698,2]
[335768331,1724483446759,-9360.34,0.00013698,2]
[335768332,1724483446771,-704.87,0.00013698,2]
[335768333,1724483446780,-9360.34,0.00013698,2]
[335768334,1724483446790,-9360.34,0.00013698,2]
[335768335,1724483446799,-779.54,0.00013698,2]
[335768336,1724483446809,-9360.34,0.00013698,2]
[335768337,1724483446819,-9360.34,0.00013698,2]
[335768338,1724483446828,-9360.34,0.00013698,2]
[335768339,1724483446840,-9360.47942433,0.00013698,2]
[335768340,1724483446850,-500.9895342,0.00013698,2]
[335768341,1724483446860,-500.0,0.00013698,2]
[335768342,1724483446870,-500.0,0.00013698,2]
[335768343,1724483446881,-1555.53,0.00013698,2]
[335768344,1724483446891,-500.0,0.00013698,2]
[335768345,1724483446900,-500.0,0.00013698,2]
[335768346,1724483446910,-2226.83,0.00013698,2]
[335768347,1724483446922,-500.0,0.00013698,2]
[335768348,1724483446933,-3856.7,0.00013698,2]
[335768349,1724483446942,-1041.69,0.00013698,2]
[335768350,1724483446951,-528.3863952,0.00013698,2]
[335768351,1724483446961,-2356.85,0.00013698,2]
[335768352,1724483446970,-500.0,0.00013698,2]
[335768353,1724483446980,-500.77864388,0.00013698,2]
[335768354,1724483446990,-500.0,0.00013698,2]
[335768355,1724483447233,-388.01515087,0.00013698,2]
[335768356,1724483447244,-500.0,0.00013698,2]
[335768357,1724483447254,-500.0,0.00013698,2]
[335768358,1724483447265,-806.38,0.00013698,2]
[335768359,1724483447274,-806.38,0.00013698,2]
[335768360,1724483447284,-806.38,0.00013698,2]
[335768361,1724483447294,-500.0,0.00013698,2]
[335768362,1724483447303,-806.38,0.00013698,2]
[335768363,1724483447313,-806.38,0.00013698,2]
[335768364,1724483447323,-806.38,0.00013698,2]
[335768365,1724483447332,-806.38,0.00013698,2]
[335768366,1724483447342,-500.0,0.00013698,2]
[335768367,1724483447351,-1084.68,0.00013698,2]
[335768368,1724483447362,-806.38,0.00013698,2]
[335768369,1724483447371,-806.38,0.00013698,2]
[335768370,1724483447380,-806.38,0.00013698,2]
[335768371,1724483447389,-806.38,0.00013698,2]
[335768372,1724483447398,-806.38,0.00013698,2]
[335768373,1724483447408,-806.38,0.00013698,2]
[335768374,1724483447417,-806.38,0.00013698,2]
[335768375,1724483447428,-2614.53,0.00013698,2]
[335768376,1724483447437,-1705.15,0.00013698,2]
[335768377,1724483447447,-806.38,0.00013698,2]
[335768378,1724483447459,-500.0,0.00013698,2]
[335768379,1724483447468,-806.38,0.00013698,2]
[335768380,1724483447478,-806.38,0.00013698,2]
[335768381,1724483447487,-806.38,0.00013698,2]
[335768382,1724483447496,-177.59616055,0.00013698,2]
[335768383,1724483447505,-464.28113837,0.00013698,2]
[335768384,1724483447514,-3586.02,0.00013698,2]
[335768385,1724483447523,-5223.85,0.00013698,2]
[335768386,1724483447533,-2192.71,0.00013698,2]
[335768387,1724483447542,-1900.89,0.00013698,2]
[335768388,1724483447552,-500.0,0.00013698,2]
[335768389,1724483447561,-500.0,0.00013698,2]
[335768390,1724483447571,-506.11145161,0.00013698,2]
[335768391,1724483447580,-836.64,0.00013698,2]
[335768392,1724483447590,-500.0,0.00013698,2]
[335768393,1724483447599,-1037.02,0.00013698,2]
[335768394,1724483447609,-500.0,0.00013698,2]
[335768395,1724483447619,-500.0,0.00013698,2]
[335768396,1724483447630,-500.0,0.00013698,2]
[335768397,1724483447641,-960.16,0.00013698,2]
[335768398,1724483447650,-20920.35,0.00013698,2]
[335768399,1724483447661,-500.0,0.00013698,2]
[335768400,1724483447671,-631.88,0.00013698,2]
[335768401,1724483447680,-631.88,0.00013698,2]
[335768402,1724483447689,-500.0,0.00013698,2]
[335768403,1724483447698,-631.88,0.00013698,2]
[335768404,1724483447708,-500.0,0.00013698,2]
[335768405,1724483447718,-631.88,0.00013698,2]
[335768406,1724483447728,-500.37530072,0.00013698,2]
[335768407,1724483447739,-631.88,0.00013698,2]
[335768408,1724483447751,-500.0,0.00013698,2]
[335768409,1724483447760,-631.88,0.00013698,2]
[335768410,1724483447769,-631.88,0.00013698,2]
[335768411,1724483447779,-2186.95,0.00013698,2]
[335768412,1724483447788,-631.88,0.00013698,2]
[335768413,1724483447796,-631.88,0.00013698,2]
[335768414,1724483447806,-631.88,0.00013698,2]
[335768415,1724483447817,-631.88,0.00013698,2]
[335768416,1724483447828,-631.88,0.00013698,2]
[335768417,1724483447842,-500.0,0.00013698,2]
[335768418,1724483447852,-631.88,0.00013698,2]
[335768419,1724483447862,-631.88,0.00013698,2]
[335768420,1724483447872,-631.88,0.00013698,2]
[335768421,1724483447885,-830.03,0.00013698,2]
[335768422,1724483447895,-631.88,0.00013698,2]
[335768423,1724483447908,-631.88,0.00013698,2]
[335768424,1724483447918,-694.33,0.00013698,2]
[335768425,1724483447927,-631.88,0.00013698,2]
[335768426,1724483447937,-631.88,0.00013698,2]
[335768427,1724483447947,-631.88,0.00013698,2]
[335768428,1724483447956,-631.88,0.00013698,2]
[335768429,1724483447966,-631.88,0.00013698,2]
[335768430,1724483447975,-631.88,0.00013698,2]
[335768431,1724483447984,-631.88163908,0.00013698,2]
[335768432,1724483447993,-500.0,0.00013698,2]
[335768433,1724483448010,-967.49,0.00013698,2]
[335768434,1724483448025,-500.64056354,0.00013698,2]
[335768435,1724483448035,-500.0,0.00013698,2]
[335768436,1724483448046,-500.0,0.00013698,2]
[335768437,1724483448056,-500.0,0.00013698,2]
[335768438,1724483448066,-500.0,0.00013698,2]
[335768439,1724483448075,-500.0,0.00013698,2]
[335768440,1724483448085,-755.36,0.00013698,2]
[335768441,1724483448096,-500.0,0.00013698,2]
[335768442,1724483448105,-9687.02,0.00013698,2]
[335768443,1724483448115,-2876.75,0.00013698,2]
[335768444,1724483448126,-501.81230016,0.00013698,2]
[335768445,1724483448136,-500.0,0.00013698,2]
[335768446,1724483448145,-500.0,0.00013698,2]
[335768447,1724483448156,-1305.57,0.00013698,2]
[335768448,1724483448166,-500.41907596,0.00013698,2]
[335768449,1724483448176,-500.0,0.00013698,2]
[335768450,1724483448186,-1977.39,0.00013698,2]
[335768451,1724483448195,-2416.53,0.00013698,2]
[335768452,1724483448205,-2416.53,0.00013698,2]
[335768453,1724483448216,-2416.53,0.00013698,2]
[335768454,1724483448226,-2416.53,0.00013698,2]
[335768455,1724483448236,-2416.53,0.00013698,2]
[335768456,1724483448246,-2416.53,0.00013698,2]
[335768457,1724483448256,-2416.53,0.00013698,2]
[335768458,1724483448266,-2416.53,0.00013698,2]
[335768459,1724483448276,-693.36,0.00013698,2]
[335768460,1724483448286,-18136.67,0.00013698,2]
[335768461,1724483448296,-2416.53,0.00013698,2]
[335768462,1724483448305,-2416.53,0.00013698,2]
[335768463,1724483448315,-2416.53,0.00013698,2]
[335768464,1724483448325,-2416.53,0.00013698,2]
[335768465,1724483448335,-2416.53,0.00013698,2]
[335768466,1724483448345,-2416.53,0.00013698,2]
[335768467,1724483448355,-500.0,0.00013698,2]
[335768468,1724483448364,-2416.53,0.00013698,2]
[335768469,1724483448374,-2416.53,0.00013698,2]
[335768470,1724483448384,-2416.53,0.00013698,2]
[335768471,1724483448393,-2416.53,0.00013698,2]
[335768472,1724483448403,-2416.53,0.00013698,2]
[335768473,1724483448412,-506.51205124,0.00013698,2]
[335768474,1724483448422,-509.55102606,0.00013698,2]
[335768475,1724483448432,-5154.78,0.00013698,2]
[335768476,1724483448442,-504.04700606,0.00013698,2]
[335768477,1724483448452,-11923.4,0.00013698,2]
[335768478,1724483448461,-501.11184243,0.00013698,2]
[335768479,1724483448471,-1004.45,0.00013698,2]
[335768480,1724483448481,-1103.19,0.00013698,2]
[335768481,1724483448490,-5798.0,0.00013698,2]
[335768482,1724483448500,-500.0,0.00013698,2]
[335768483,1724483448509,-500.0,0.00013698,2]
[335768484,1724483448519,-500.80362181,0.00013698,2]
[335768485,1724483448529,-500.0,0.00013698,2]
[335768486,1724483448539,-500.0,0.00013698,2]
[335768487,1724483448548,-500.0,0.00013698,2]
[335768488,1724483448558,-500.0,0.00013698,2]
[335768489,1724483448567,-502.53864449,0.00013698,2]
[335768490,1724483448576,-561.11,0.00013698,2]
[335768491,1724483448587,-745.68,0.00013698,2]
[335768492,1724483448609,-500.0,0.00013698,2]
[335768493,1724483448619,-500.0,0.00013698,2]
[335768494,1724483448628,-500.0,0.00013698,2]
[335768495,1724483448638,-500.0,0.00013698,2]
[335768496,1724483448647,-500.0,0.00013698,2]
[335768497,1724483448657,-500.0,0.00013698,2]
[335768498,1724483448667,-242.17256067,0.00013698,2]
[335768499,1724483448677,-500.0,0.00013698,2]
[335768500,1724483448686,-1033.27,0.00013698,2]
[335768501,1724483448696,-1936.06,0.00013698,2]
[335768502,1724483448706,-500.0,0.00013698,2]
[335768503,1724483448715,-1095.67,0.00013698,2]
[335768504,1724483448725,-500.0,0.00013698,2]
[335768505,1724483448735,-3816.09,0.00013698,2]
[335768506,1724483448745,-500.0,0.00013698,2]
[335768507,1724483448755,-500.0,0.00013698,2]
[335768508,1724483448765,-1354.1,0.00013698,2]
[335768509,1724483448775,-500.0,0.00013698,2]
[335768510,1724483448785,-1521.04,0.00013698,2]
[335768511,1724483448795,-500.0,0.00013698,2]
[335768512,1724483448804,-533.12472795,0.00013698,2]
[335768513,1724483448813,-500.0,0.00013698,2]
[335768514,1724483448823,-511.23922017,0.00013698,2]
[335768515,1724483448833,-500.0,0.00013698,2]
[335768516,1724483448846,-543.41771865,0.00013698,2]
[335768517,1724483448856,-849.78,0.00013698,2]
[335768518,1724483448866,-10332.39,0.00013698,2]
[335768519,1724483448875,-500.0,0.00013698,2]
[335768520,1724483448886,-500.0,0.00013698,2]
[335768521,1724483448896,-500.0,0.00013698,2]
[335768522,1724483448906,-718.41,0.00013698,2]
[335768523,1724483448917,-1008.99,0.00013698,2]
[335768524,1724483448926,-293.91923949,0.00013698,2]
[335768525,1724483448936,-500.0,0.00013698,2]
[335768526,1724483448946,-718.74,0.00013698,2]
[335768527,1724483448955,-2519.0,0.00013698,2]
[335768528,1724483448965,-4869.48,0.00013698,2]
[335768529,1724483448975,-1421.72,0.00013698,2]
[335768530,1724483448984,-500.0,0.00013698,2]
[335768531,1724483448994,-500.0,0.00013698,2]
[335768532,1724483449003,-1306.95,0.00013698,2]
[335768533,1724483449013,-1111.16,0.00013698,2]
[335768534,1724483449022,-500.607898,0.00013698,2]
[335768535,1724483449031,-1348.78,0.00013698,2]
[335768536,1724483449041,-500.0,0.00013698,2]
[335768537,1724483449051,-500.0,0.00013698,2]
[335768538,1724483449060,-500.55269522,0.00013698,2]
[335768539,1724483449070,-934.92,0.00013698,2]
[335768540,1724483449079,-14688.01,0.00013698,2]
[335768541,1724483449091,-577.65,0.00013698,2]
[335768542,1724483449101,-500.0,0.00013698,2]
[335768543,1724483449110,-636.55,0.00013698,2]
[335768544,1724483449120,-500.0,0.00013698,2]
[335768545,1724483449131,-389.45330612,0.00013698,2]
[335768546,1724483449141,-500.0,0.00013698,2]
[335768547,1724483449151,-500.0,0.00013698,2]
[335768548,1724483449161,-1290.36,0.00013698,2]
[335768549,1724483449171,-1716.46,0.00013698,2]
[335768550,1724483449180,-561.87,0.00013698,2]
[335768551,1724483449190,-500.0,0.00013698,2]
[335768552,1724483449200,-2293.24,0.00013698,2]
[335768553,1724483449210,-3165.38,0.00013698,2]
[335768554,1724483449219,-690.27,0.00013698,2]
[335768555,1724483449229,-674.58,0.00013698,2]
[335768556,1724483449239,-500.0,0.00013698,2]
[335768557,1724483449249,-500.0,0.00013698,2]
[335768558,1724483449259,-500.0,0.00013698,2]
[335768559,1724483449269,-367.49542234,0.00013698,2]
[335768560,1724483449279,-3509.98,0.00013698,2]
[335768561,1724483449289,-734.82,0.00013698,2]
[335768562,1724483449299,-500.0,0.00013698,2]
[335768563,1724483449308,-2451.78,0.00013698,2]
[335768564,1724483449319,-500.0,0.00013698,2]
[335768565,1724483449329,-763.37,0.00013698,2]
[335768566,1724483449339,-500.0,0.00013698,2]
[335768567,1724483449349,-564.65068328,0.00013698,2]
[335768568,1724483449359,-1094.72,0.00013698,2]
[335768569,1724483449369,-1696.02,0.00013698,2]
[335768570,1724483449378,-500.0,0.00013698,2]
[335768571,1724483449389,-1059.88,0.00013698,2]
[335768572,1724483449399,-502.29850537,0.00013698,2]
[335768573,1724483449409,-2454.6,0.00013698,2]
[335768574,1724483449420,-7181.1,0.00013698,2]
[335768575,1724483449430,-500.0,0.00013698,2]
[335768576,1724483449440,-500.0,0.00013698,2]
[335768577,1724483449452,-504.9817126,0.00013698,2]
[335768578,1724483449463,-1394.76,0.00013698,2]
[335768579,1724483449473,-1113.22,0.00013698,2]
[335768580,1724483449482,-1113.22,0.00013698,2]
[335768581,1724483449492,-500.0,0.00013698,2]
[335768582,1724483449502,-1113.22,0.00013698,2]
[335768583,1724483449512,-1113.22,0.00013698,2]
[335768584,1724483449521,-1113.22,0.00013698,2]
[335768585,1724483449530,-1113.22,0.00013698,2]
[335768586,1724483449540,-1113.22,0.00013698,2]
[335768587,1724483449550,-1113.22,0.00013698,2]
[335768588,1724483449559,-738.25,0.00013698,2]
[335768589,1724483449569,-1113.22,0.00013698,2]
[335768590,1724483449578,-513.99772868,0.00013698,2]
[335768591,1724483449589,-10587.27,0.00013698,2]
[335768592,1724483449599,-1113.22,0.00013698,2]
[335768593,1724483449608,-622.11,0.00013698,2]
[335768594,1724483449618,-1113.22,0.00013698,2]
[335768595,1724483449628,-1113.22,0.00013698,2]
[335768596,1724483449637,-1113.22,0.00013698,2]
[335768597,1724483449647,-500.0,0.00013698,2]
[335768598,1724483449658,-1113.22,0.00013698,2]
[335768599,1724483449668,-1113.22,0.00013698,2]
[335768600,1724483449678,-1865.14,0.00013698,2]
[335768601,1724483449688,-1113.22,0.00013698,2]
[335768602,1724483449697,-1113.22,0.00013698,2]
[335768603,1724483449707,-1113.22,0.00013698,2]
[335768604,1724483449717,-1113.22,0.00013698,2]
[335768605,1724483449726,-500.0,0.00013698,2]
[335768606,1724483449736,-1113.22,0.00013698,2]
[335768607,1724483449749,-1113.22,0.00013698,2]
[335768608,1724483449761,-1113.22,0.00013698,2]
[335768609,1724483449770,-1113.22,0.00013698,2]
[335768610,1724483449780,-1113.41815425,0.00013698,2]
[335768611,1724483449790,-2602.81,0.00013698,2]
[335768612,1724483449800,-2163.12,0.00013698,2]
[335768613,1724483449810,-961.84,0.00013698,2]
[335768614,1724483449819,-411.68077222,0.00013698,2]
[335768615,1724483449830,-500.0,0.00013698,2]
[335768616,1724483449846,-500.0,0.00013698,2]
[335768617,1724483449856,-500.0,0.00013698,2]
[335768618,1724483449867,-500.0,0.00013698,2]
[335768619,1724483449876,-500.0,0.00013698,2]
[335768620,1724483449887,-517.5,0.00013698,2]
[335768621,1724483449897,-500.0,0.00013698,2]
[335768622,1724483449907,-4611.35,0.00013698,2]
[335768623,1724483449918,-2006.77,0.00013698,2]
[335768624,1724483449928,-500.0,0.00013698,2]
[335768625,1724483449938,-1520.92,0.00013698,2]
[335768626,1724483449947,-500.68041564,0.00013698,2]
[335768627,1724483449957,-505.43898382,0.00013698,2]
[335768628,1724483449966,-1782.14,0.00013698,2]
[335768629,1724483449975,-500.0,0.00013698,2]
[335768630,1724483449985,-572.82,0.00013698,2]
[335768631,1724483449995,-500.0,0.00013698,2]
[335768632,1724483450004,-500.0,0.00013698,2]
[335768633,1724483450014,-516.71,0.00013698,2]
[335768634,1724483450023,-3421.37,0.00013698,2]
[335768635,1724483450032,-500.0,0.00013698,2]
[335768636,1724483450042,-3439.97,0.00013698,2]
[335768637,1724483450054,-3000.0,0.00013699,2]
[335768638,1724483450064,-1850.515096,0.00013699,2]
[335768639,1724483450074,-1850.515096,0.00013699,2]
[335768640,1724483450083,-151.0,0.00013699,2]
[335768641,1724483450093,-151.0,0.00013699,2]
[335768642,1724483450103,-151.0,0.00013699,2]
[335768643,1724483450112,-151.0,0.00013699,2]
[335768644,1724483450122,-535.188244,0.00013699,2]
[335768645,1724483450134,-535.188244,0.00013699,2]
[335768646,1724483450145,-650.059302,0.00013699,2]
[335768647,1724483450155,-650.059302,0.00013699,2]
[335768648,1724483450165,-151.0,0.00013699,2]
[335768649,1724483450175,-151.0,0.00013699,2]
[335768650,1724483450185,-3677.278715,0.00013699,2]
[335768651,1724483450197,-3677.278715,0.00013699,2]
[335768652,1724483450208,-151.0,0.00013699,2]
[335768653,1724483450219,-538.707119,0.00013699,2]
[335768654,1724483450230,-538.707119,0.00013699,2]
[335768655,1724483450240,-151.0,0.00013699,2]
[335768656,1724483450250,-1040.786388,0.00013699,2]
[335768657,1724483450260,-1040.786388,0.00013699,2]
[335768658,1724483450270,-204.026499,0.00013699,2]
[335768659,1724483450280,-2634.726655,0.00013699,2]
[335768660,1724483450289,-204.026499,0.00013699,2]
[335768661,1724483450299,-1119.008387,0.00013699,2]
[335768662,1724483450309,-1119.008387,0.00013699,2]
[335768663,1724483450318,-151.0,0.00013699,2]
[335768664,1724483450328,-151.0,0.00013699,2]
[335768665,1724483450338,-151.0,0.00013699,2]
[335768666,1724483450348,-950.259632,0.00013699,2]
[335768667,1724483450358,-950.259632,0.00013699,2]
[335768668,1724483450367,-202.319256,0.00013699,2]
[335768669,1724483450378,-1203.59075343,0.00013699,2]
[335768670,1724483450388,-1203.59075343,0.00013699,2]
[335768671,1724483450398,-1203.59075343,0.00013699,2]
[335768672,1724483450408,-1203.59075343,0.00013699,2]
[335768673,1724483450421,-1203.59075343,0.00013699,2]
[335768674,1724483450431,-1203.59075343,0.00013699,2]
[335768675,1724483450442,-1203.59075343,0.00013699,2]
[335768676,1724483450453,-1203.59075343,0.00013699,2]
[335768677,1724483450462,-1203.59075343,0.00013699,2]
[335768678,1724483450471,-1203.59075343,0.00013699,2]
[335768679,1724483450481,-1203.59075343,0.00013699,2]
[335768680,1724483450491,-1203.59075343,0.00013699,2]
[335768681,1724483450500,-1203.59075343,0.00013699,2]
[335768682,1724483450676,-1203.59075343,0.00013699,2]
[335768683,1724483450686,-1203.59075343,0.00013699,2]
[335768684,1724483450697,-1203.59075343,0.00013699,2]
[335768685,1724483450706,-1203.59075343,0.00013699,2]
[335768686,1724483450717,-1203.59075343,0.00013699,2]
[335768687,1724483450729,-194.91980144,0.00013699,2]
[335768688,1724483450739,-150.112233,0.000137,2]
[335768689,1724483450750,-150.112233,0.000137,2]
[335768690,1724483450760,-150.112233,0.000137,2]
[335768691,1724483450770,-150.112233,0.000137,2]